bitfinex/quotes_SOLUSD_20250917
["timestamp","ask_amount","ask_price","bid_price","bid_amount"]
[1758137611168,7.98191824,238.15,238.1,4.19984645]
[1758137611551,7.98191824,238.15,238.08,12.21205397]
[1758137611753,0.65,238.21,238.08,22.71272601]
[1758137611958,7.98191824,238.19,238.12,7.98191824]
[1758137612174,7.98191824,238.16,238.08,4.23013573]
[1758137612486,7.98191824,238.13,238.08,4.23013573]
[1758137612968,7.98191824,238.13,238.08,0.03]
[1758137613170,7.98191824,238.13,238.08,4.9502073]
[1758137613388,7.98191824,238.13,238.08,0.03]
[1758137613685,7.98191824,238.13,238.08,4.23025157]
[1758137614065,7.98191824,238.1,238.08,0.03]
[1758137614256,7.98191824,238.09,238.08,0.03]
[1758137614457,0.65,238.14,238.08,0.03]
[1758137614672,35.38,238.13,238.08,0.03]
[1758137614855,7.98191824,238.13,238.08,0.03]
[1758137615056,43.36191824,238.14,238.08,0.75]
[1758137615474,43.36191824,238.14,238.08,0.03]
[1758137615660,43.34191824,238.14,238.08,0.03]
[1758137615861,7.98191824,238.13,238.08,0.03]
[1758137616457,7.98191824,238.12,238.08,0.03]
[1758137616763,14.24559401,238.18,238.08,8.01191824]
[1758137616954,35.34,238.17,238.1,7.98191824]
[1758137617151,6.96204836,238.24,238.13,7.98191824]
[1758137617152,0.65,238.22,238.13,7.98191824]
[1758137617356,43.32191824,238.21,238.14,7.98191824]
[1758137617581,7.98191824,238.17,238.1,7.98191824]
[1758137617788,36.4938102,238.24,238.1,7.98191824]
[1758137617789,13.59559401,238.24,238.16,7.98191824]
[1758137617951,7.98191824,238.23,238.16,7.98191824]
[1758137618381,35.32,238.25,238.19,7.98191824]
[1758137618582,35.32,238.25,238.17,0.72]
[1758137618760,43.30191824,238.25,238.17,8.70191824]
[1758137618953,7.98191824,238.25,238.17,8.70191824]
[1758137619167,43.30191824,238.26,238.19,7.98191824]
[1758137619368,43.30191824,238.27,238.2,7.98191824]
[1758137619690,43.30191824,238.27,238.19,7.98191824]
[1758137619994,43.28191824,238.28,238.21,7.98191824]
[1758137620167,43.28191824,238.29,238.21,7.98191824]
[1758137620367,7.98191824,238.26,238.18,7.98191824]
[1758137620566,7.98191824,238.26,238.19,8.70191824]
[1758137620873,43.28191824,238.29,238.21,7.98191824]
[1758137621079,7.98191824,238.28,238.21,7.98191824]
[1758137621586,0.65,238.35,238.21,7.98191824]
[1758137621882,0.65,238.35,238.1,20.99941132]
[1758137621883,7.98191824,238.23,238.15,0.72]
[1758137622059,7.98191824,238.22,238.15,12.90090453]
[1758137622259,7.98191824,238.19,238.1,0.72]
[1758137622478,7.98191824,238.19,238.11,7.98191824]
[1758137622689,7.98191824,238.14,238.08,0.03]
[1758137622983,26.0,238.29,238.08,0.03]
[1758137622984,7.98191824,238.12,238.08,0.03]
[1758137623183,35.32,238.17,238.11,7.98191824]
[1758137623364,43.30191824,238.19,238.12,7.98191824]
[1758137623766,7.98191824,238.17,238.12,4.19956324]
[1758137623988,7.98191824,238.18,238.12,4.19956324]
[1758137624184,35.32,238.19,238.12,4.19956324]
[1758137624185,43.30191824,238.19,238.12,22.68038959]
[1758137624575,43.30191824,238.19,238.08,0.03]
[1758137624576,7.98191824,238.13,238.08,0.03]
[1758137624775,7.98191824,238.11,238.08,0.03]
[1758137624980,7.98191824,238.1,238.08,0.03]
[1758137625176,0.65,238.15,238.08,0.03]
[1758137625694,26.0,238.22,238.09,7.98191824]
[1758137625695,35.32,238.14,238.09,7.98191824]
[1758137625994,7.98191824,238.18,238.11,7.98191824]
[1758137626198,7.98191824,238.2,238.13,7.98191824]
[1758137626388,0.65,238.24,238.15,7.98191824]
[1758137626591,7.98191824,238.21,238.15,7.98191824]
[1758137626769,7.98191824,238.19,238.1,14.699706]
[1758137627091,8.63191824,238.2,238.13,7.98191824]
[1758137627275,8.63191824,238.2,238.1,14.699706]
[1758137627478,7.98191824,238.19,238.12,7.98191824]
[1758137627879,7.98191824,238.19,238.13,4.19938688]
[1758137628077,7.98191824,238.21,238.14,7.98191824]
[1758137628297,7.98191824,238.2,238.13,22.67977234]
[1758137628477,7.98191824,238.19,238.13,4.19938688]
[1758137628679,4.19762414,238.23,238.11,4.19962125]
[1758137628680,7.98191824,238.14,238.11,4.19962125]
[1758137628874,35.3,238.18,238.08,0.03]
[1758137628875,7.98191824,238.13,238.09,4.19995373]
[1758137629087,7.98191824,238.1,238.08,0.03]
[1758137629293,7.98191824,238.09,238.08,0.03]
[1758137630179,7.98191824,238.09,237.92,35.33]
[1758137630180,13.59559401,237.99,237.92,0.03]
[1758137630389,7.98191824,237.96,237.92,0.03]
[1758137630787,8.54191824,237.96,237.92,0.03]
[1758137631098,45.00191824,237.96,237.92,0.03]
[1758137632077,49.20430519,237.96,237.92,0.03]
[1758137632491,62.7998992,237.96,237.92,0.03]
[1758137632698,47.57751225,237.93,237.92,0.03]
[1758137632900,60.79827137,237.93,237.92,0.03]
[1758137633109,0.56,237.95,237.92,0.03]
[1758137633316,7.98191824,237.93,237.92,0.03]
[1758137633897,36.4,237.93,237.92,0.03]
[1758137634080,44.38191824,237.93,237.92,0.03]
[1758137634396,36.38,237.93,237.92,0.03]
[1758137634801,7.98191824,237.94,237.92,0.03]
[1758137635096,7.98191824,237.93,237.92,0.03]
[1758137635315,36.36,237.93,237.92,0.03]
[1758137635604,36.34,237.93,237.92,0.03]
[1758137635774,13.59559401,237.99,237.92,0.03]
[1758137635973,7.98191824,237.99,237.92,8.01191824]
[1758137636173,7.98191824,237.99,237.93,4.20291682]
[1758137636174,36.34,237.98,237.93,4.20291682]
[1758137636787,36.34,237.98,237.93,12.18483506]
[1758137636986,20.5680368,238.0,237.93,12.18483506]
[1758137636987,12.58611856,238.0,237.94,7.98191824]
[1758137637206,36.32,237.99,237.97,7.98191824]
[1758137637385,36.32,237.98,237.97,0.72]
[1758137637578,44.30191824,237.99,237.93,4.20291682]
[1758137637816,36.32,237.98,237.92,0.03]
[1758137638006,36.32,237.97,237.92,0.03]
[1758137638179,36.88,237.97,237.92,0.03]
[1758137638375,14.15559401,237.96,237.92,0.03]
[1758137638810,7.98191824,237.93,237.92,0.03]
[1758137639290,44.28191824,237.93,237.92,0.03]
[1758137640189,36.3,237.93,237.92,0.03]
[1758137640384,44.28191824,237.93,237.92,0.03]
[1758137640582,44.24191824,237.93,237.92,0.03]
[1758137641015,58.39751225,237.93,237.92,0.03]
[1758137641312,57.83751225,237.93,237.92,0.03]
[1758137641791,44.24191824,237.93,237.92,0.03]
[1758137642311,36.26,237.93,237.92,0.03]
[1758137642485,44.24191824,237.93,237.92,0.03]
[1758137642911,38.63,238.02,237.92,0.03]
[1758137643118,7.98191824,237.93,237.92,0.03]
[1758137643319,44.22191824,237.93,237.92,0.03]
[1758137643523,7.98191824,237.93,237.92,0.03]
[1758137643690,36.24,237.93,237.92,0.03]
[1758137644385,7.98191824,237.99,237.92,8.73191824]
[1758137644584,13.59559401,238.01,237.92,8.73191824]
[1758137644585,7.98191824,237.96,237.92,0.03]
[1758137644994,7.98191824,237.95,237.92,0.03]
[1758137645195,7.98191824,237.93,237.92,0.03]
[1758137645401,57.77751225,237.93,237.92,0.03]
[1758137645609,58.30751225,237.93,237.9,0.03]
[1758137645786,21.57751225,237.91,237.9,0.03]
[1758137646187,57.77751225,237.91,237.9,0.03]
[1758137646386,58.30751225,237.91,237.9,0.03]
[1758137646581,38.63,237.98,237.9,0.03]
[1758137646891,7.98191824,237.94,237.9,0.03]
[1758137647092,36.2,237.93,237.9,0.03]
[1758137647509,44.18191824,237.93,237.9,0.03]
[1758137647895,5.08288982,237.92,237.9,0.03]
[1758137648089,5.08288982,237.91,237.9,0.03]
[1758137649221,18.67848383,237.91,237.9,0.03]
[1758137650197,19.20848383,237.91,237.9,0.03]
[1758137651608,4.20344682,237.9,237.89,0.03]
[1758137651817,57.25710393,237.9,237.89,0.03]
[1758137652109,21.99654693,237.9,237.89,0.03]
[1758137652297,58.98193065,237.9,237.89,0.03]
[1758137652608,23.41193065,237.9,237.89,0.03]
[1758137652822,74.92971176,237.9,237.89,0.03]
[1758137653016,36.39137365,237.88,237.87,0.03]
[1758137653219,39.17915476,237.88,237.87,0.03]
[1758137653388,18.67848383,237.85,237.84,0.2]
[1758137653592,54.75848383,237.85,237.84,0.2]
[1758137653903,36.08,237.85,237.84,0.2]
[1758137654086,41.16288982,237.85,237.84,0.2]
[1758137654501,36.08,237.85,237.84,0.2]
[1758137654713,41.16288982,237.85,237.84,0.2]
[1758137655110,39.59559401,237.81,237.65,0.03]
[1758137655311,5.08288982,237.66,237.65,0.03]
[1758137655617,42.78288982,237.66,237.65,0.03]
[1758137655916,56.37848383,237.66,237.65,0.03]
[1758137656325,18.67848383,237.66,237.65,0.03]
[1758137656613,37.66,237.69,237.65,0.75]
[1758137656823,37.66,237.69,237.66,0.72]
[1758137657003,37.66,237.69,237.67,0.72]
[1758137657310,13.59559401,237.68,237.65,0.03]
[1758137657512,5.08288982,237.66,237.65,0.03]
[1758137657717,56.43848383,237.66,237.65,0.03]
[1758137658014,59.75314624,237.66,237.65,0.03]
[1758137658200,61.17617549,237.66,237.65,0.03]
[1758137658388,13.59559401,237.65,237.62,0.03]
[1758137658587,5.08288982,237.63,237.62,0.03]
[1758137658822,18.67848383,237.63,237.62,0.03]
[1758137659611,13.59559401,237.62,237.53,0.1]
[1758137659815,56.41848383,237.61,237.53,0.1]
[1758137660187,60.62706091,237.61,237.53,0.1]
[1758137660385,56.41848383,237.61,237.53,0.1]
[1758137661910,62.03137365,237.61,237.53,0.1]
[1758137662119,39.59559401,237.57,237.53,0.1]
[1758137662298,22.88830112,237.54,237.53,0.1]
[1758137662495,60.48830112,237.54,237.53,0.1]
[1758137662690,56.27848383,237.54,237.53,0.1]
[1758137663001,26.0,237.57,237.53,0.82]
[1758137663204,5.08288982,237.54,237.53,0.82]
[1758137663394,42.66288982,237.54,237.53,5.02986796]
[1758137663587,42.66288982,237.54,237.53,0.82]
[1758137664189,37.58,237.54,237.53,0.82]
[1758137664414,42.66288982,237.54,237.53,0.82]
[1758137664615,42.62288982,237.54,237.53,0.82]
[1758137665193,56.21848383,237.54,237.53,0.1]
[1758137665397,56.21848383,237.54,237.51,0.03]
[1758137665398,13.59559401,237.53,237.51,0.03]
[1758137665613,56.19848383,237.52,237.51,0.03]
[1758137666302,60.4086556,237.52,237.51,0.03]
[1758137666688,56.19848383,237.52,237.51,0.03]
[1758137666898,56.15848383,237.52,237.51,0.03]
[1758137668529,56.15848383,237.52,237.46,0.03]
[1758137668719,39.59559401,237.49,237.46,0.03]
[1758137669023,13.59559401,237.49,237.46,0.03]
[1758137669232,56.07848383,237.49,237.48,0.75]
[1758137669399,37.4,237.49,237.48,0.75]
[1758137670030,42.48288982,237.49,237.48,0.75]
[1758137670944,56.07848383,237.49,237.48,0.03]
[1758137671111,18.67848383,237.49,237.48,0.03]
[1758137671536,26.0,237.55,237.48,0.75]
[1758137671836,50.91559401,237.54,237.48,0.75]
[1758137672142,5.08288982,237.49,237.48,0.03]
[1758137672361,37.34,237.49,237.48,0.75]
[1758137672640,5.08288982,237.49,237.48,0.75]
[1758137672936,42.42288982,237.49,237.48,0.03]
[1758137673108,42.42288982,237.49,237.48,0.69]
[1758137673538,42.42288982,237.49,237.48,0.03]
[1758137673714,56.01848383,237.49,237.48,0.03]
[1758137674607,13.59559401,237.49,237.48,0.03]
[1758137674811,55.93848383,237.49,237.48,0.69]
[1758137675022,18.67848383,237.49,237.48,0.69]
[1758137675349,55.91848383,237.49,237.48,0.03]
[1758137675643,55.89848383,237.49,237.48,0.03]
[1758137676828,55.89848383,237.49,237.48,0.69]
[1758137677031,42.24288982,237.49,237.48,0.69]
[1758137677440,5.08288982,237.49,237.48,0.69]
[1758137677747,42.22288982,237.49,237.48,0.69]
[1758137678947,13.59559401,237.57,237.48,4.90088091]
[1758137679130,5.08288982,237.52,237.49,0.66]
[1758137679319,37.08,237.51,237.49,0.66]
[1758137679520,37.08,237.51,237.5,0.66]
[1758137679732,37.08,237.51,237.48,0.03]
[1758137679920,42.16288982,237.51,237.49,0.66]
[1758137680349,5.08288982,237.5,237.49,0.66]
[1758137680860,37.08,237.51,237.5,4.21052631]
[1758137680861,37.04,237.51,237.5,4.21052631]
[1758137681050,37.04,237.51,237.5,4.87052631]
[1758137681349,42.12288982,237.51,237.48,0.03]
[1758137681550,37.04,237.51,237.49,0.66]
[1758137681750,5.08288982,237.5,237.49,0.66]
[1758137681915,5.08288982,237.5,237.48,4.24076951]
[1758137682120,37.02,237.49,237.48,0.03]
[1758137682334,37.0,237.49,237.48,0.03]
[1758137682536,37.0,237.49,237.48,4.90071505]
[1758137682735,4.20961934,237.56,237.48,4.90071505]
[1758137682736,13.59559401,237.57,237.48,15.42791734]
[1758137682941,13.59559401,237.66,237.5,5.08288982]
[1758137683226,5.08288982,237.59,237.52,5.08288982]
[1758137683426,42.06288982,237.58,237.53,0.66]
[1758137683951,34.12,237.68,237.57,26.0]
[1758137684153,5.08288982,237.62,237.58,0.66]
[1758137684456,5.08288982,237.59,237.55,0.66]
[1758137684653,42.02288982,237.58,237.56,0.66]
[1758137684848,36.94,237.58,237.57,0.66]
[1758137685046,42.02288982,237.58,237.54,0.66]
[1758137685364,36.94,237.58,237.53,26.0]
[1758137685659,36.94,237.58,237.48,0.03]
[1758137685660,5.08288982,237.54,237.48,4.90072516]
[1758137685960,36.92,237.53,237.49,26.66]
[1758137686157,26.0,237.64,237.5,0.66]
[1758137686455,5.08288982,237.57,237.5,0.66]
[1758137686756,5.08288982,237.55,237.5,0.66]
[1758137686958,5.08288982,237.58,237.51,14.73622162]
[1758137687135,36.98,237.57,237.52,0.66]
[1758137687338,5.08288982,237.6,237.53,5.08288982]
[1758137687648,13.59559401,237.62,237.54,0.66]
[1758137687825,5.08288982,237.58,237.54,0.66]
[1758137688027,42.04288982,237.57,237.51,20.47911144]
[1758137688225,36.96,237.56,237.52,5.74288982]
[1758137688556,36.94,237.56,237.53,0.66]
[1758137688729,36.94,237.58,237.57,26.0]
[1758137689060,36.94,237.58,237.57,30.86928568]
[1758137689628,36.92,237.59,237.57,41.39249989]
[1758137689833,36.92,237.59,237.58,0.66]
[1758137690161,36.88,237.59,237.58,0.66]
[1758137690460,36.88,237.61,237.58,5.74288982]
[1758137690630,13.59559401,237.72,237.63,26.0]
[1758137690829,36.86,237.7,237.63,26.66]
[1758137691026,41.94288982,237.7,237.63,31.08288982]
[1758137691240,5.08288982,237.68,237.59,0.66]
[1758137691526,5.08288982,237.68,237.6,4.2087542]
[1758137691746,5.08288982,237.65,237.6,4.2087542]
[1758137691950,41.94288982,237.64,237.6,4.2087542]
[1758137692158,36.86,237.63,237.6,4.2087542]
[1758137692533,36.84,237.62,237.6,4.2087542]
[1758137692756,36.84,237.62,237.6,4.8687542]
[1758137692951,36.84,237.62,237.6,9.29164402]
[1758137693156,5.08288982,237.67,237.61,0.66]
[1758137693370,13.59559401,237.69,237.63,5.08288982]
[1758137693538,36.8,237.66,237.63,5.08288982]
[1758137693732,36.8,237.66,237.63,5.74288982]
[1758137693940,36.86,237.66,237.63,0.66]
[1758137694465,36.84,237.66,237.65,5.08288982]
[1758137694665,0.06,237.66,237.65,5.74288982]
[1758137695260,0.06,237.66,237.65,9.95075853]
[1758137696661,0.06,237.66,237.65,4.86786871]
[1758137696867,0.06,237.66,237.65,9.95075853]
[1758137698273,0.06,237.68,237.65,9.95075853]
[1758137698274,0.06,237.68,237.67,26.0]
[1758137698435,5.08288982,237.83,237.67,31.08288982]
[1758137698640,36.68,237.79,237.74,5.08288982]
[1758137699040,5.08288982,237.78,237.7,0.71]
[1758137699350,36.68,237.79,237.73,5.08288982]
[1758137699555,5.08288982,237.77,237.7,5.08288982]
[1758137699743,2.80953749,237.78,237.72,5.08288982]
[1758137700144,13.59559401,237.75,237.65,0.71]
[1758137700466,3.4630153,237.82,237.74,5.08288982]
[1758137700771,36.72,237.84,237.81,5.08288982]
[1758137700952,0.06,237.85,237.83,5.08288982]
[1758137701267,0.06,237.85,237.84,9.99739705]
[1758137701475,0.06,237.88,237.87,31.08288982]
[1758137701837,0.06,237.88,237.87,26.0]
[1758137702180,0.06,237.88,237.87,5.79288982]
[1758137702472,0.06,237.88,237.87,31.79288982]
[1758137702774,0.06,237.88,237.87,5.79288982]
[1758137703270,0.06,237.88,237.87,0.71]
[1758137703498,0.06,237.88,237.81,0.69]
[1758137703652,0.06,237.88,237.87,5.08288982]
[1758137704276,0.06,237.88,237.87,5.77288982]
[1758137704940,0.06,237.9,237.89,26.0]
[1758137705145,0.06,237.95,237.89,31.08288982]
[1758137705343,0.06,237.95,237.9,4.20344682]
[1758137705548,0.06,237.95,237.9,9.28633664]
[1758137705742,0.06,237.95,237.92,5.08288982]
[1758137706286,0.06,237.95,237.91,5.08288982]
[1758137706648,0.06,237.95,237.87,26.0]
[1758137706649,5.08288982,237.94,237.87,5.08288982]
[1758137706850,0.06,237.95,237.89,5.08288982]
[1758137707186,0.06,237.95,237.92,5.08288982]
[1758137707685,0.06,237.95,237.9,5.08288982]
[1758137707856,0.06,237.95,237.92,7.98033508]
[1758137708061,0.06,237.95,237.91,7.98033508]
[1758137708266,0.06,237.95,237.87,26.0]
[1758137708267,7.98033508,237.94,237.87,7.98033508]
[1758137708470,7.98033508,237.93,237.89,26.0]
[1758137708665,8.04033508,237.95,237.89,26.0]
[1758137708866,0.06,237.95,237.91,7.98033508]
[1758137709077,0.06,237.95,237.89,26.69]
[1758137709078,0.06,237.95,237.93,7.98033508]
[1758137709278,0.06,237.95,237.92,7.98033508]
[1758137709660,0.06,237.95,237.92,8.67033508]
[1758137709891,0.06,237.95,237.92,0.69]
[1758137710271,0.06,237.95,237.94,7.98033508]
[1758137710572,8.04033508,237.95,237.88,4.20371118]
[1758137710771,0.06,237.95,237.92,7.98033508]
[1758137711016,0.06,237.95,237.93,8.67033508]
[1758137711382,0.06,237.95,237.93,12.87310081]
[1758137711679,0.06,237.95,237.94,8.67033508]
[1758137712082,0.06,237.95,237.93,4.20276573]
[1758137712390,0.06,237.95,237.94,8.67033508]
[1758137713702,0.06,237.98,237.97,26.0]
[1758137713868,0.06,237.98,237.97,33.98033508]
[1758137714068,0.06,238.0,237.97,34.67033508]
[1758137714381,0.06,238.0,237.99,7.98033508]
[1758137714904,0.06,238.0,237.99,8.67033508]
[1758137715488,0.06,238.0,237.99,4.20185722]
[1758137715692,0.06,238.0,237.98,26.0]
[1758137716897,0.06,238.0,237.97,7.98033508]
[1758137717078,0.06,238.0,237.99,8.67033508]
[1758137717473,0.06,238.0,237.99,12.8721923]
[1758137718274,0.06,238.0,237.99,26.0]
[1758137718469,0.06,238.0,237.99,34.67033508]
[1758137718905,0.06,238.0,237.96,4.20231563]
[1758137719096,0.06,238.0,237.99,26.0]
[1758137719402,8.69033508,238.0,237.94,4.20274018]
[1758137719603,0.06,238.0,237.94,12.18307526]
[1758137719804,0.06,238.0,237.97,33.98033508]
[1758137720309,8.04033508,238.0,237.93,7.98033508]
[1758137720474,4.9117312,238.0,237.9,7.98033508]
[1758137720672,7.98033508,237.95,237.88,12.18413531]
[1758137720911,4.2617312,238.0,237.92,7.98033508]
[1758137721107,7.98033508,237.99,237.92,7.98033508]
[1758137721410,0.06,238.0,237.97,7.98033508]
[1758137721578,0.06,238.0,237.98,7.98033508]
[1758137721778,0.06,238.0,237.99,7.98033508]
[1758137722105,0.06,238.0,237.99,8.67033508]
[1758137723198,0.06,238.0,237.99,34.67033508]
[1758137723404,0.06,238.0,237.99,38.1821923]
[1758137723611,0.06,238.0,237.99,30.20185722]
[1758137723907,0.06,238.0,237.99,4.20185722]
[1758137724312,0.06,238.0,237.99,38.8721923]
[1758137725500,0.06,238.0,237.99,38.1821923]
[1758137725697,0.06,238.0,237.99,26.0]
[1758137726186,0.06,238.0,237.97,12.18244422]
[1758137726588,0.06,238.0,237.98,7.98033508]
[1758137726915,0.06,238.0,237.97,12.18244422]
[1758137727278,0.06,238.0,237.98,7.98033508]
[1758137727483,0.06,238.0,237.98,12.18236886]
[1758137727776,0.06,238.0,237.95,10.50615079]
[1758137727777,0.06,238.0,237.96,7.98033508]
[1758137728407,0.06,238.0,237.97,33.98033508]
[1758137728614,0.06,238.0,237.94,30.20274018]
[1758137728781,0.06,238.0,237.85,21.02129783]
[1758137728782,0.65,237.99,237.97,0.03]
[1758137728986,0.06,238.0,237.97,0.03]
[1758137729204,0.71,238.0,237.97,0.03]
[1758137729407,0.65,237.99,237.97,0.03]
[1758137729584,13.59559401,237.98,237.97,0.03]
[1758137729998,22.19592909,237.98,237.94,0.03]
[1758137730199,21.57592909,237.95,237.92,0.03]
[1758137730420,13.59559401,237.92,237.8,12.1853767]
[1758137730629,7.98033508,237.88,237.81,7.98033508]
[1758137731039,7.98033508,237.87,237.8,22.69841286]
[1758137731236,7.98033508,237.87,237.8,12.1853767]
[1758137731539,7.98033508,237.85,237.78,12.18590325]
[1758137731705,7.98033508,237.86,237.79,7.98033508]
[1758137731909,7.98033508,237.86,237.8,26.0]
[1758137732441,7.98033508,237.9,237.83,7.98033508]
[1758137734420,7.98033508,237.88,237.82,7.98033508]
[1758137734634,7.98033508,237.88,237.81,7.98033508]
[1758137734839,7.98033508,237.89,237.82,7.98033508]
[1758137735042,13.59559401,237.95,237.85,7.98033508]
[1758137735335,13.59559401,237.95,237.81,14.71760181]
[1758137735336,13.59559401,237.95,237.89,7.98033508]
[1758137735524,8.54033508,237.99,237.92,7.98033508]
[1758137735835,0.06,238.0,237.95,7.98033508]
[1758137736029,0.06,238.0,237.9,26.0]
[1758137736210,0.06,238.0,237.97,7.98033508]
[1758137736408,0.06,238.0,237.99,7.98033508]
[1758137737244,0.06,238.0,237.99,8.66033508]
[1758137737442,0.06,238.0,237.99,38.8621923]
[1758137737849,0.06,238.0,237.99,12.8621923]
[1758137738357,0.06,238.03,238.02,26.0]
[1758137738636,0.06,238.03,238.02,33.98033508]
[1758137738816,0.06,238.03,238.02,34.66033508]
[1758137739310,0.06,238.03,238.02,7.98033508]
[1758137739519,0.06,238.03,238.02,26.0]
[1758137739728,0.06,238.03,237.99,12.86202873]
[1758137739931,0.06,238.03,238.01,7.98033508]
[1758137740308,0.06,238.03,238.0,34.66033508]
[1758137740508,0.06,238.03,238.02,26.0]
[1758137741250,8.04033508,238.03,237.99,26.0]
[1758137741425,7.98033508,238.02,237.99,26.0]
[1758137741620,8.04033508,238.03,237.98,4.20199666]
[1758137741947,7.98033508,237.99,237.91,0.68]
[1758137742154,7.98033508,237.97,237.91,0.68]
[1758137742313,7.98033508,237.95,237.88,4.20380023]
[1758137742514,7.98033508,237.93,237.88,4.20380023]
[1758137742715,7.98033508,237.91,237.84,8.66033508]
[1758137742942,7.98033508,237.88,237.81,7.98033508]
[1758137743149,13.59559401,237.92,237.8,0.68]
[1758137743150,7.98033508,237.86,237.8,8.66033508]
[1758137743320,49.47559401,237.92,237.76,0.68]
[1758137743321,7.98033508,237.84,237.76,0.68]
[1758137743526,7.98033508,237.81,237.75,4.20609884]
[1758137743733,7.98033508,237.8,237.73,12.18662444]
[1758137743939,7.98033508,237.81,237.74,7.98033508]
[1758137744311,36.46,237.84,237.75,7.98033508]
[1758137744518,7.98033508,237.82,237.75,7.98033508]
[1758137744745,7.98033508,237.81,237.75,7.98033508]
[1758137744919,7.98033508,237.79,237.72,4.23661239]
[1758137745125,7.98033508,237.77,237.72,4.23661239]
[1758137745354,7.98033508,237.78,237.72,38.21694747]
[1758137745546,7.98033508,237.8,237.74,4.20627576]
[1758137745722,0.56,237.85,237.75,7.98033508]
[1758137745926,36.09467106,237.95,237.81,7.98033508]
[1758137745927,7.98033508,237.87,237.81,7.98033508]
[1758137746120,7.98033508,237.89,237.82,7.98033508]
[1758137746326,57.43592909,237.89,237.83,7.98033508]
[1758137746544,7.98033508,237.87,237.81,7.98033508]
[1758137746738,7.98033508,237.88,237.81,7.98033508]
[1758137746921,49.45559401,237.89,237.83,7.98033508]
[1758137747248,49.45559401,237.89,237.79,0.68]
[1758137747249,7.98033508,237.88,237.82,7.98033508]
[1758137747635,7.98033508,237.88,237.82,12.18503131]
[1758137747931,33.98033508,237.94,237.87,7.98033508]
[1758137748464,0.56,237.93,237.82,30.20469623]
[1758137748751,7.98033508,237.9,237.83,7.98033508]
[1758137748951,7.98033508,237.91,237.85,7.98033508]
[1758137749254,7.98033508,237.91,237.74,13.62559401]
[1758137749255,7.98033508,237.86,237.81,26.0]
[1758137749550,7.98033508,237.85,237.8,4.20508259]
[1758137750219,13.59559401,237.87,237.8,4.20508259]
[1758137750419,7.98033508,237.85,237.8,4.20508259]
[1758137750622,0.56,237.93,237.83,7.98033508]
[1758137750845,0.06,237.98,237.85,7.98033508]
[1758137750846,13.59559401,237.92,237.85,7.98033508]
[1758137751064,13.59559401,237.92,237.86,7.98033508]
[1758137751065,35.8,237.92,237.86,7.98033508]
[1758137751358,35.8,237.92,237.82,26.0]
[1758137751359,35.82,237.93,237.89,7.98033508]
[1758137752258,35.82,237.93,237.9,4.20344682]
[1758137752459,0.06,237.98,237.92,7.98033508]
[1758137752673,35.78,237.97,237.94,7.98033508]
[1758137753164,0.06,237.98,237.96,7.98033508]
[1758137753466,0.06,237.98,237.97,7.98033508]
[1758137753965,0.06,237.98,237.97,8.66033508]
[1758137754147,0.06,237.98,237.97,30.20221036]
[1758137754471,0.06,237.98,237.94,26.0]
[1758137754648,8.04033508,237.98,237.91,30.20327014]
[1758137754866,8.04033508,237.98,237.85,0.68]
[1758137754867,7.98033508,237.95,237.85,0.68]
[1758137755054,7.98033508,237.93,237.86,7.98033508]
[1758137755437,7.98033508,237.93,237.87,7.98033508]
[1758137756098,17.85768711,237.98,237.92,7.98033508]
[1758137756099,35.78,237.96,237.92,7.98033508]
[1758137756284,0.06,237.98,237.95,7.98033508]
[1758137756562,0.06,237.98,237.93,7.98033508]
[1758137756748,8.04033508,237.98,237.91,7.98033508]
[1758137756947,8.04033508,237.98,237.9,0.68]
[1758137756948,7.98033508,237.97,237.9,8.66033508]